bitfinex/quotes_ETHUSD_20251124
["timestamp","ask_amount","ask_price","bid_price","bid_amount"]
[1764014145754,3.3721405,2965.5,2964.8,0.001]
[1764014145755,3.56113535,2965.8,2965.0,0.4794]
[1764014145953,0.216,2965.5,2965.1,3.93774659]
[1764014146272,0.216,2965.5,2965.1,0.5652]
[1764014146426,0.216,2965.5,2965.1,0.4794]
[1764014146627,0.216,2965.5,2965.1,3.85194993]
[1764014148285,0.216,2965.5,2965.1,0.4794]
[1764014149145,0.216,2965.5,2965.1,3.85196346]
[1764014149345,0.216,2965.5,2965.1,3.8519508]
[1764014149558,0.216,2965.5,2965.1,0.4794]
[1764014149759,0.35900104,2965.4,2964.9,3.37279503]
[1764014149981,0.002,2965.6,2965.3,0.5796]
[1764014150181,0.002,2965.6,2965.5,0.4938]
[1764014150345,0.002,2965.6,2965.5,4.36501262]
[1764014150981,0.002,2965.6,2965.5,0.4938]
[1764014151149,0.4671,2965.6,2965.3,3.3722395]
[1764014152681,0.4671,2965.6,2965.2,3.372433]
[1764014154283,0.4671,2965.6,2965.2,6.74488679]
[1764014154475,0.4671,2965.6,2965.2,3.372433]
[1764014155309,0.4671,2965.6,2965.2,6.74488679]
[1764014157293,0.002,2965.6,2965.5,0.4938]
[1764014157601,0.002,2965.6,2965.5,0.9929]
[1764014158205,0.002,2965.6,2965.5,0.4938]
[1764014158574,0.002,2965.6,2965.5,3.86591262]
[1764014159211,0.002,2965.6,2965.2,0.4991]
[1764014159509,0.002,2965.6,2965.4,0.72559411]
[1764014160304,0.002,2965.6,2965.3,3.37231294]
[1764014160608,0.002,2965.6,2965.3,0.72559411]
[1764014161505,0.464,2965.6,2965.2,6.74490758]
[1764014161884,0.464,2965.6,2965.0,0.001]
[1764014161885,0.4651,2965.3,2965.0,0.001]
[1764014162074,0.0047,2965.1,2965.0,0.001]
[1764014162270,0.4667,2965.1,2965.0,0.001]
[1764014163108,3.83926753,2965.1,2965.0,0.001]
[1764014163307,0.405504,2964.6,2964.2,0.001]
[1764014163509,0.405504,2964.2,2962.3,0.4991]
[1764014163799,8.27498711,2963.9,2962.6,3.37532734]
[1764014164000,9.44746471,2963.9,2962.4,0.1862]
[1764014164194,10.83706818,2963.9,2962.4,0.1862]
[1764014164400,10.83706818,2963.9,2961.9,0.1862]
[1764014164401,28.441953,2963.7,2961.9,0.1862]
[1764014164630,1.13109811,2963.8,2961.6,3.37653789]
[1764014164631,31.45307571,2963.6,2961.6,3.37653789]
[1764014164798,12.68457518,2963.6,2962.1,0.118]
[1764014165000,14.04913778,2963.6,2962.1,0.118]
[1764014165230,13.64748278,2963.6,2962.1,0.118]
[1764014165405,21.72242484,2963.6,2962.1,0.118]
[1764014165613,13.99140784,2963.6,2962.1,0.118]
[1764014166542,16.80142384,2963.6,2962.1,0.118]
[1764014166902,16.80142384,2963.6,2961.6,0.72559411]
[1764014167313,16.80142384,2963.6,2961.6,1.22469411]
[1764014167513,35.50745984,2963.6,2961.6,1.22469411]
[1764014167731,34.19506184,2963.6,2961.6,1.22469411]
[1764014167934,27.23255376,2963.6,2961.6,0.72559411]
[1764014168132,27.23255376,2963.6,2961.8,0.4991]
[1764014168441,24.23957376,2963.6,2962.1,0.118]
[1764014168600,23.70557376,2963.6,2962.1,0.118]
[1764014168805,20.11498076,2963.6,2962.1,3.99297087]
[1764014169002,20.11498076,2963.6,2961.9,3.37619265]
[1764014169198,8.07857641,2963.6,2962.4,0.4991]
[1764014169407,15.60862841,2963.6,2962.4,0.4991]
[1764014169600,1.75049588,2963.6,2962.4,0.4991]
[1764014169800,0.1919,2964.9,2963.5,0.9939]
[1764014170035,0.216,2964.8,2963.8,0.4938]
[1764014170351,0.72559411,2964.6,2963.5,0.001]
[1764014170541,0.1919,2963.6,2963.5,0.001]
[1764014170714,0.4079,2963.6,2963.5,0.001]
[1764014170916,7.12955553,2963.6,2963.5,0.001]
[1764014171116,1.67921496,2963.6,2963.5,0.001]
[1764014171438,1.00151496,2963.6,2963.5,0.001]
[1764014171627,0.216,2963.6,2963.5,0.001]
[1764014171823,4.07557453,2963.6,2963.5,0.001]
[1764014172025,16.08641653,2963.6,2963.5,0.001]
[1764014172243,9.69330153,2963.6,2963.5,0.001]
[1764014172410,8.05191353,2963.6,2963.5,0.001]
[1764014172610,9.21371136,2963.6,2963.5,0.001]
[1764014172939,6.07517636,2963.6,2963.5,0.001]
[1764014173245,12.45060836,2963.6,2963.5,0.001]
[1764014173540,1.16179783,2963.6,2963.5,0.001]
[1764014173726,0.1919,2963.8,2963.5,0.001]
[1764014173932,0.216,2963.7,2963.5,0.001]
[1764014174929,0.002,2963.8,2963.5,0.001]
[1764014175240,0.216,2963.7,2963.5,0.001]
[1764014177242,0.002,2963.8,2963.6,0.4807]
[1764014177416,0.002,2963.8,2963.7,0.4807]
[1764014177624,0.218,2963.8,2963.7,0.4807]
[1764014178453,0.002,2963.8,2963.7,0.4807]
[1764014178650,0.002,2963.8,2963.7,0.9672]
[1764014178951,0.002,2963.8,2963.7,4.34136067]
[1764014181933,0.002,2963.8,2963.7,5.06695478]
[1764014183875,0.002,2963.8,2963.5,0.001]
[1764014184377,0.216,2963.7,2963.5,0.001]
[1764014184521,0.448,2963.6,2963.5,0.001]
[1764014185800,0.216,2963.7,2963.5,0.001]
[1764014187377,0.216,2963.6,2963.5,0.001]
[1764014188917,0.002,2963.8,2963.5,0.001]
[1764014189206,0.216,2963.7,2963.5,0.001]
[1764014189561,7.48325453,2963.6,2963.5,0.001]
[1764014189859,4.97699667,2963.6,2963.5,0.001]
[1764014190093,6.17139078,2963.6,2963.5,0.001]
[1764014190311,6.48384745,2963.6,2963.5,0.001]
[1764014190604,9.01296045,2963.6,2963.5,0.001]
[1764014190899,10.49483945,2963.6,2963.5,0.001]
[1764014191103,6.48384745,2963.6,2963.5,0.001]
[1764014192504,1.91517881,2963.6,2963.5,0.001]
[1764014192712,4.03857453,2963.6,2963.5,0.001]
[1764014193102,0.6643,2963.6,2963.5,0.001]
[1764014193307,7.77830153,2963.6,2963.5,0.001]
[1764014193704,8.09121005,2963.6,2963.5,0.001]
[1764014193916,4.57366952,2963.6,2963.5,0.001]
[1764014194102,1.43477547,2963.6,2963.5,0.001]
[1764014194382,4.80905,2963.6,2963.5,0.001]
[1764014194816,4.49614148,2963.6,2963.5,0.001]
[1764014195013,0.67356695,2963.6,2963.5,0.001]
[1764014195215,0.216,2963.6,2963.5,0.001]
[1764014195808,0.002,2963.8,2963.5,0.001]
[1764014196117,0.216,2963.6,2963.5,0.001]
[1764014196716,0.448,2963.6,2963.5,0.001]
[1764014196923,0.216,2963.6,2963.5,0.001]
[1764014197422,0.002,2963.8,2963.5,0.001]
[1764014197730,0.002,2963.8,2963.7,0.4573]
[1764014197939,0.218,2963.8,2963.7,0.4573]
[1764014199106,0.002,2963.8,2963.7,0.4573]
[1764014199311,0.218,2963.8,2963.7,0.4573]
[1764014199988,0.218,2963.8,2963.5,0.4726]
[1764014200299,0.218,2963.8,2963.6,3.37423088]
[1764014200624,0.218,2963.8,2963.5,3.37533231]
[1764014201116,0.448,2963.6,2963.5,0.001]
[1764014202920,0.218,2963.8,2963.5,0.001]
[1764014203119,0.216,2963.7,2963.5,0.001]
[1764014203421,0.4602,2963.6,2963.5,0.001]
[1764014203605,1.85732772,2963.6,2963.5,0.001]
[1764014203807,6.002226,2963.6,2963.5,0.001]
[1764014204223,10.607317,2963.6,2963.5,0.001]
[1764014204390,9.394795,2963.6,2963.5,0.001]
[1764014204590,9.760236,2963.6,2963.5,0.001]
[1764014205123,8.797467,2963.6,2963.5,0.001]
[1764014205629,11.892237,2963.6,2963.5,0.001]
[1764014206609,16.952767,2963.6,2963.5,0.001]
[1764014206909,18.80640086,2963.6,2963.5,0.001]
[1764014207226,0.31362375,2963.6,2963.5,0.001]
[1764014207434,0.002,2963.8,2963.5,0.001]
[1764014207792,0.448,2963.6,2963.5,0.001]
[1764014208343,0.002,2963.8,2963.5,0.001]
[1764014209196,0.4976,2963.6,2963.5,0.001]
[1764014209399,0.92695468,2963.6,2963.5,0.001]
[1764014209624,1.34685468,2963.6,2963.5,0.001]
[1764014209826,0.92695468,2963.6,2963.5,0.001]
[1764014210528,0.91011933,2963.6,2963.5,0.001]
[1764014210734,0.002,2963.8,2963.5,0.4668]
[1764014210906,0.216,2963.6,2963.5,0.4568]
[1764014211107,0.218,2963.8,2963.5,0.9226]
[1764014211313,0.218,2963.8,2963.5,0.001]
[1764014211534,0.0048,2963.0,2961.7,2.41998814]
[1764014211721,0.0048,2963.0,2960.9,4.19439127]
[1764014211722,3.366687,2961.7,2960.7,2.99599376]
[1764014212031,3.8014197,2961.6,2960.5,0.1968]
[1764014212248,3.923451,2961.6,2960.5,0.1968]
[1764014212417,7.80859832,2961.6,2960.1,3.37826424]
[1764014212733,8.33868101,2961.6,2960.5,0.4558]
[1764014212898,5.93623401,2961.6,2960.5,0.4558]
[1764014213097,5.39661648,2961.6,2960.2,0.72559411]
[1764014213331,1.70698058,2961.6,2961.1,0.0927]
[1764014213530,4.01355321,2961.6,2961.1,0.0927]
[1764014214246,9.03755321,2961.6,2961.1,0.0927]
[1764014214448,5.661,2961.6,2961.1,0.0927]
[1764014214654,5.7563957,2961.6,2961.1,0.0927]
[1764014214950,5.9733957,2961.6,2961.1,0.0927]
[1764014215156,0.1807,2962.2,2961.5,0.4668]
[1764014215376,0.217,2962.1,2961.6,0.4658]
[1764014215736,0.52943392,2962.1,2961.5,0.001]
[1764014215980,0.72085672,2962.1,2961.5,0.001]
[1764014216175,0.4084228,2962.1,2961.5,0.001]
[1764014216787,3.55628713,2962.5,2961.6,0.4558]
[1764014217085,3.06197,2962.3,2961.5,0.001]
[1764014217384,2.23111,2962.2,2961.5,0.001]
[1764014217531,3.42261,2962.2,2961.5,0.001]
[1764014217737,0.4785,2962.1,2961.5,0.001]
[1764014217938,0.217,2962.0,2961.5,0.001]
[1764014218832,4.00035109,2962.0,2961.5,0.001]
[1764014219064,2.198462,2961.9,2961.5,0.001]
[1764014219266,0.4785,2961.9,2961.5,0.001]
[1764014220305,0.4364,2961.6,2961.5,0.001]
[1764014220491,0.6524,2961.6,2961.5,0.001]
[1764014220693,4.50705321,2961.6,2961.5,0.001]
[1764014221020,9.19530853,2961.6,2961.5,0.001]
[1764014221224,7.54131853,2961.6,2961.5,0.001]
[1764014221514,4.47965853,2961.6,2961.5,0.001]
[1764014221680,9.10850553,2961.6,2961.5,0.001]
[1764014221890,10.43909964,2961.6,2961.5,0.001]
[1764014222199,9.84724764,2961.6,2961.5,0.001]
[1764014222715,9.14156064,2961.6,2961.5,0.001]
[1764014223905,10.14156064,2961.6,2961.5,0.001]
[1764014224107,0.45070532,2961.6,2961.5,0.4668]
[1764014224275,0.216,2961.6,2961.5,0.4668]
[1764014224807,0.72559411,2961.9,2961.5,0.4668]
[1764014225123,0.72559411,2962.0,2961.5,4.2992305]
[1764014225304,0.216,2961.8,2961.5,0.001]
[1764014226010,0.216,2961.7,2961.5,0.001]
[1764014226966,0.216,2961.6,2961.5,0.001]
[1764014228406,4.147581,2961.6,2961.5,0.001]
[1764014228705,3.635581,2961.6,2961.5,0.001]
[1764014228894,7.41942231,2961.6,2961.5,0.001]
[1764014229097,6.71042531,2961.6,2961.5,0.001]
[1764014229298,6.49442531,2961.6,2961.5,0.001]
[1764014229494,6.71042531,2961.6,2961.5,0.001]
[1764014229696,0.4072881,2961.6,2961.5,0.001]
[1764014229886,0.4072881,2961.6,2961.5,0.4668]
[1764014230088,0.216,2961.6,2961.5,0.4668]
[1764014230922,0.216,2961.6,2961.5,0.001]
[1764014232283,2.45888,2961.6,2961.5,0.001]
[1764014232624,3.37338,2961.6,2961.5,0.001]
[1764014232830,17.35885521,2961.6,2961.5,0.001]
[1764014232985,19.43238536,2961.6,2961.5,0.001]
[1764014233694,20.52473236,2961.6,2961.5,0.001]
[1764014234106,2.07353015,2961.6,2961.5,0.4668]
[1764014234422,0.216,2961.6,2961.5,0.4668]
[1764014235944,3.3759868,2962.1,2961.5,0.9226]
[1764014236111,0.52967398,2962.7,2961.5,0.9226]
[1764014236112,9.1124361,2962.7,2962.0,0.4658]
[1764014236310,6.7505991,2962.7,2962.0,0.4658]
[1764014236628,0.216,2962.6,2962.1,0.1968]
[1764014236798,0.57512996,2962.6,2962.1,0.1968]
[1764014237102,0.57512996,2962.6,2962.1,3.57274484]
[1764014237307,7.71268481,2963.0,2962.1,4.02854484]
[1764014237502,8.866882,2962.8,2962.1,0.1968]
[1764014237729,8.866882,2962.8,2961.9,0.1968]
[1764014237936,0.216,2962.9,2961.9,3.57300918]
[1764014238095,3.069816,2962.7,2961.9,4.02880918]
[1764014238290,3.069816,2962.7,2961.9,0.6526]
[1764014238495,6.894948,2962.6,2961.9,0.1968]
[1764014238696,4.807706,2962.4,2961.9,0.1968]
[1764014238922,3.215926,2962.4,2961.9,3.57300634]
[1764014239198,3.215926,2962.4,2961.9,0.1968]
[1764014239398,3.37569496,2962.4,2961.9,0.1968]
[1764014240090,3.37569496,2962.4,2961.9,4.02816809]
[1764014240299,4.07241219,2962.4,2961.9,3.57296809]
[1764014240698,4.07241219,2962.4,2961.9,4.02816809]
[1764014241542,4.40928334,2962.8,2962.3,0.4971]
[1764014241867,4.31409767,2962.7,2962.3,0.4971]
[1764014242065,0.216,2962.7,2962.3,0.4971]
[1764014242216,0.93922778,2962.7,2962.3,0.4971]
[1764014242769,0.72322778,2962.7,2962.6,0.4971]
[1764014243069,0.216,2962.7,2962.6,0.4971]
[1764014243917,0.216,2962.7,2962.6,4.32760176]
[1764014245546,0.002,2962.9,2962.6,4.32760176]
[1764014245784,0.002,2962.9,2962.8,0.4971]
[1764014246078,0.218,2962.9,2962.8,0.4971]
[1764014247086,0.218,2962.9,2962.8,0.9523]
[1764014247284,0.002,2962.9,2962.8,0.9523]
[1764014247487,0.218,2962.9,2962.8,0.9523]
[1764014247986,0.218,2962.9,2962.8,4.32748563]
[1764014248649,0.002,2962.9,2962.8,5.05307974]
[1764014252180,0.002,2962.9,2962.8,11.99443461]
[1764014253174,0.002,2962.9,2962.8,5.05307974]
[1764014253779,0.002,2962.9,2962.8,3.87228563]
[1764014255286,0.002,2962.9,2962.8,4.32748563]
[1764014258014,0.002,2962.9,2962.8,3.44436563]
[1764014258221,0.002,2962.9,2962.8,0.3827]
[1764014260221,0.002,2962.9,2962.8,3.75788563]
[1764014260717,0.002,2962.9,2961.6,6.93900642]
[1764014260718,2.933131,2962.8,2961.6,6.93900642]
[1764014260917,2.631631,2962.6,2961.6,6.93900642]
[1764014261325,0.216,2962.5,2961.6,6.93900642]
[1764014261493,0.216,2962.4,2961.7,0.3827]
[1764014261699,0.1902,2962.9,2962.5,0.001]
[1764014262017,0.216,2962.8,2962.5,0.001]
[1764014263185,0.64255115,2962.8,2962.5,0.001]
[1764014264522,0.216,2962.7,2962.5,0.001]
[1764014266125,0.002,2962.9,2962.6,0.3827]
[1764014266313,0.216,2962.8,2962.6,0.3827]
[1764014266620,0.216,2962.8,2962.6,3.75801529]
[1764014266922,0.216,2962.8,2962.5,3.3764371]
[1764014268219,0.6915,2962.8,2962.5,3.3764371]
[1764014268544,0.6915,2962.8,2962.5,0.001]
[1764014268720,0.216,2962.8,2962.5,0.001]
[1764014269522,0.1902,2962.9,2962.7,0.3827]
[1764014269523,0.002,2962.9,2962.7,0.3827]
[1764014269718,0.002,2962.9,2962.8,0.3827]
[1764014269921,0.218,2962.9,2962.8,0.3827]
[1764014270120,0.002,2962.9,2962.8,0.3827]
[1764014270445,0.002,2962.9,2962.8,3.75788563]
[1764014270805,0.218,2962.9,2962.8,3.75788563]
[1764014271320,0.002,2962.9,2962.8,3.75788563]
[1764014271506,0.002,2962.9,2962.8,4.86617974]
[1764014271844,0.002,2962.9,2962.8,4.48347974]
[1764014272023,0.002,2962.9,2962.8,4.10077974]
[1764014272420,0.488,2962.9,2962.5,0.001]
[1764014272624,0.216,2962.8,2962.5,0.001]
[1764014273520,0.002,2962.9,2962.7,0.3827]
[1764014273724,0.216,2962.8,2962.7,0.3827]
[1764014274645,0.216,2962.8,2962.7,3.75799955]
[1764014274960,0.002,2962.9,2962.7,7.1332991]
[1764014275113,0.002,2962.9,2962.8,0.3827]
[1764014275459,0.002,2962.9,2962.8,0.7654]
[1764014275762,0.002,2962.9,2962.8,1.49099411]
[1764014277541,0.002,2962.9,2962.8,4.86617974]
[1764014278266,0.002,2962.9,2962.8,4.10077974]
[1764014278432,0.002,2962.9,2962.8,4.48347974]
[1764014278954,0.002,2962.9,2962.8,4.10077974]
[1764014279182,0.002,2962.9,2962.8,4.48347974]
[1764014281133,0.002,2962.9,2962.8,4.48447974]
[1764014282055,0.488,2962.9,2962.8,4.10177974]
[1764014282446,0.002,2962.9,2962.8,4.10177974]
[1764014282642,0.002,2962.9,2962.8,4.48447974]
[1764014282862,0.002,2962.9,2962.8,4.86717974]
[1764014283572,0.002,2962.9,2962.8,4.48447974]
[1764014284380,0.002,2962.9,2962.8,4.10177974]
[1764014284692,0.002,2962.9,2962.8,0.001]
[1764014284693,8.600286,2962.9,2962.8,0.001]
[1764014284848,0.72559411,2962.8,2962.5,0.001]
[1764014285046,3.297641,2962.6,2962.5,0.001]
[1764014285295,3.00932864,2962.6,2962.5,0.001]
[1764014285576,1.23018764,2962.6,2962.5,0.001]
[1764014285752,4.55930664,2962.6,2962.5,0.001]
[1764014285961,3.54680664,2962.6,2962.5,0.001]
[1764014286483,1.23018764,2962.6,2962.5,0.001]
[1764014286696,7.93472012,2962.6,2962.5,0.001]
[1764014286849,9.06572281,2962.6,2962.5,0.001]
[1764014287048,8.45872681,2962.6,2962.5,0.001]
[1764014287746,9.61760881,2962.6,2962.5,0.001]
[1764014288745,6.14210781,2962.6,2962.5,0.001]
[1764014288982,12.41482181,2962.6,2962.5,0.001]
[1764014289980,17.36630679,2962.6,2962.5,0.001]
[1764014290601,18.0919009,2962.6,2962.5,0.001]
[1764014290787,3.08678444,2962.6,2962.5,0.001]
[1764014291117,1.44618764,2962.6,2962.5,0.001]
[1764014291499,1.1325,2962.6,2962.5,0.001]
[1764014292409,4.50791348,2962.6,2962.5,0.001]
[1764014293016,7.19948048,2962.6,2962.5,0.001]
[1764014294018,8.67065248,2962.6,2962.5,0.001]
[1764014294189,9.87524837,2962.6,2962.5,0.001]
[1764014295122,20.93803302,2962.6,2962.5,0.001]
[1764014295434,15.37809002,2962.6,2962.5,0.001]
[1764014295614,10.85244502,2962.6,2962.5,0.001]
[1764014296124,7.15665202,2962.6,2962.5,0.001]
[1764014296422,9.30922002,2962.6,2962.5,0.001]
[1764014296609,7.15665202,2962.6,2962.5,0.001]
[1764014296810,9.52756802,2962.6,2962.5,0.001]
[1764014297206,7.15665202,2962.6,2962.5,0.001]
[1764014297585,11.24202302,2962.6,2962.5,0.001]
[1764014297790,10.62051902,2962.6,2962.5,0.001]
[1764014297986,5.71250937,2962.6,2962.5,0.001]
[1764014298187,5.02220937,2962.6,2962.5,0.001]
[1764014298392,7.29499237,2962.6,2962.5,0.001]
[1764014298602,5.71250937,2962.6,2962.5,0.001]
[1764014300890,1.64679589,2962.6,2962.5,0.001]
[1764014301091,4.03361348,2962.6,2962.5,0.001]
[1764014301293,7.24709248,2962.6,2962.5,0.001]
[1764014301733,8.25959248,2962.6,2962.5,0.001]
[1764014301914,6.59519448,2962.6,2962.5,0.001]
[1764014302317,4.50381348,2962.6,2962.5,0.001]
[1764014302512,1.91650161,2962.6,2962.5,0.001]
[1764014302717,1.00410161,2962.6,2962.5,0.001]
[1764014302917,0.002,2962.8,2962.5,0.3847]
[1764014303096,0.002,2962.8,2962.7,0.3837]
[1764014303293,0.218,2962.8,2962.5,0.001]
[1764014304924,0.002,2962.8,2962.5,0.001]
[1764014305125,0.216,2962.7,2962.5,0.001]
[1764014305539,0.002,2962.8,2962.6,0.3837]
[1764014305748,0.216,2962.7,2962.6,0.3837]
[1764014306215,0.216,2962.7,2962.5,0.001]
[1764014306216,0.8739,2962.7,2962.5,0.001]
[1764014306540,0.94472906,2962.6,2962.5,0.001]
[1764014306743,1.16072906,2962.6,2962.5,0.001]
[1764014307045,1.16282906,2962.6,2962.5,0.001]
[1764014307340,1.1609,2962.6,2962.5,0.001]
[1764014308046,0.002,2962.8,2962.5,0.3847]
[1764014308345,0.002,2962.8,2962.5,0.001]
[1764014308346,9.390332,2962.6,2962.5,0.001]
[1764014308530,10.42921886,2962.6,2962.5,0.001]
[1764014308859,11.62155431,2962.6,2962.5,0.001]
[1764014309023,16.85598316,2962.6,2962.5,0.001]
[1764014309214,7.94035116,2962.6,2962.5,0.001]
[1764014309414,32.03906816,2962.6,2962.5,0.001]
[1764014309815,31.03906816,2962.6,2962.5,0.001]
[1764014310117,28.99051516,2962.6,2962.5,0.001]
[1764014310336,32.50449616,2962.6,2962.5,0.001]
[1764014310649,23.49320916,2962.6,2962.5,0.001]
[1764014311049,10.37979716,2962.6,2962.5,0.001]
[1764014311212,18.89710416,2962.6,2962.5,0.001]
[1764014311728,19.30260816,2962.6,2962.5,0.001]
[1764014312358,30.29317416,2962.6,2962.5,0.001]
[1764014312520,29.63579316,2962.6,2962.5,0.001]
[1764014313263,28.03458099,2962.6,2962.5,0.001]
[1764014313470,26.46544299,2962.6,2962.5,0.001]
[1764014313772,25.65738599,2962.6,2962.5,0.001]
[1764014314281,9.54497764,2962.6,2962.5,0.001]
[1764014314442,48.01923646,2962.6,2962.5,0.001]
[1764014314766,48.54409666,2962.6,2962.5,0.001]
[1764014314968,1.13109811,2962.5,2962.2,0.001]
[1764014315128,1.13109811,2962.5,2959.9,3.86]
[1764014315129,1.13109811,2962.0,2960.1,0.3837]
[1764014315334,0.405504,2961.4,2960.1,0.3837]
[1764014315577,0.52929275,2961.3,2960.1,3.76191646]
[1764014315874,2.496881,2961.2,2960.2,0.72559411]
[1764014316079,0.31329275,2961.1,2960.3,0.3847]
[1764014316275,2.496881,2961.1,2960.3,0.3847]
[1764014316456,2.84551838,2961.1,2960.3,0.3847]
[1764014316651,3.37723741,2961.0,2960.4,3.3779219]
[1764014316858,0.216,2960.9,2960.3,3.76269297]
[1764014318068,0.216,2960.9,2960.3,3.76369297]
[1764014318372,3.37699911,2961.3,2960.8,0.3847]
[1764014318577,0.55369991,2961.2,2960.9,0.3847]
[1764014318750,3.93071154,2961.2,2960.4,0.3847]
[1764014319283,3.93071154,2961.2,2960.5,3.3778078]
[1764014319493,3.93071154,2961.2,2960.5,6.7556156]
[1764014319494,0.55369991,2961.2,2960.5,6.7556156]
[1764014319653,0.55369991,2961.2,2960.6,0.3847]
[1764014319975,3.71471811,2961.2,2960.5,3.3778078]
[1764014320173,0.92516909,2961.1,2960.5,6.7556156]
[1764014320350,0.216,2961.1,2960.5,7.1403156]
[1764014320773,0.216,2961.1,2961.0,0.3847]
[1764014320960,0.31293494,2961.4,2961.0,0.3847]
[1764014321160,6.75082696,2962.6,2961.3,0.4792]
[1764014321374,2.155921,2962.4,2961.7,0.3847]
[1764014321559,0.31291151,2962.3,2961.7,0.3847]
[1764014322169,1.03401527,2962.4,2961.7,0.3847]
[1764014322392,5.437786,2962.2,2961.3,0.0945]
[1764014322596,3.050512,2962.0,2961.3,0.0945]
[1764014322795,0.405504,2961.8,2961.3,3.47136139]
[1764014322970,0.4747,2961.4,2960.8,0.72559411]
[1764014323161,0.216,2961.3,2960.8,0.72559411]
[1764014323591,0.216,2961.3,2960.8,1.11029411]
[1764014323993,0.216,2961.3,2961.2,0.4792]
[1764014324695,0.216,2961.3,2960.8,3.37746554]
[1764014324893,0.216,2961.3,2960.8,3.76216554]
[1764014325463,0.216,2961.3,2960.8,3.37746554]
[1764014325792,0.216,2961.3,2961.2,0.4792]
[1764014325994,3.3763448,2961.8,2961.2,0.4792]
[1764014326193,0.216,2961.7,2961.2,0.8639]
[1764014326493,0.216,2961.7,2961.2,0.4792]
[1764014326673,0.6862,2961.7,2961.2,0.4792]
[1764014327493,4.062672,2961.7,2961.2,0.4792]
[1764014327698,0.493,2961.6,2961.2,0.4792]
[1764014328211,3.592472,2961.7,2961.2,0.4792]
[1764014328504,4.359932,2961.6,2961.2,0.4792]
[1764014328894,0.4712,2961.3,2960.5,0.3847]
[1764014329095,0.6684,2961.2,2960.5,0.3847]
[1764014329408,0.6684,2961.2,2960.7,0.72559411]
[1764014329608,1.1346,2961.2,2960.6,0.72559411]
[1764014330106,0.216,2961.2,2960.6,1.11029411]
[1764014330306,0.216,2961.1,2960.7,0.3847]
[1764014330477,0.216,2961.0,2960.7,0.3847]
[1764014330891,0.216,2961.0,2960.9,0.3847]
[1764014331310,0.216,2961.0,2960.9,3.76205148]
[1764014332711,0.216,2961.0,2960.9,0.3847]
[1764014333012,0.216,2961.0,2960.5,0.72559411]
[1764014333377,0.216,2961.0,2960.6,3.32769371]
[1764014333803,0.216,2961.0,2960.6,6.70538742]
[1764014334282,0.216,2961.0,2960.9,0.3847]
[1764014334613,5.11680132,2962.1,2960.9,0.3847]
[1764014334614,0.216,2961.4,2961.0,0.72559411]
[1764014334830,0.31315227,2962.1,2961.4,0.3847]
[1764014335118,0.63152963,2962.0,2961.4,0.3847]
[1764014335510,0.63152963,2962.0,2961.5,3.37666722]
[1764014335705,0.216,2961.9,2961.5,3.37666722]
[1764014335917,0.216,2961.9,2961.3,3.37683649]
[1764014336216,0.41552963,2962.0,2961.8,0.3847]
[1764014336421,0.216,2961.9,2961.8,0.3847]
[1764014336582,3.103943,2962.5,2961.8,0.3847]
[1764014336786,0.5730143,2962.4,2961.9,0.3847]
[1764014336986,0.216,2962.4,2961.9,0.3847]
[1764014337206,0.002,2962.2,2961.9,0.3847]
[1764014337412,0.216,2962.1,2962.0,3.76079723]
[1764014337612,0.002,2962.2,2962.1,0.0935]
[1764014337814,0.002,2962.2,2962.1,0.4782]
[1764014338124,0.218,2962.2,2962.1,0.8629]
[1764014338825,0.218,2962.2,2962.1,0.4782]
[1764014339202,0.218,2962.2,2962.1,0.8629]
[1764014339508,0.218,2962.2,2962.1,4.23888325]
[1764014340292,0.218,2962.2,2962.1,3.85418325]
[1764014340714,0.218,2962.2,2962.1,4.23888325]
[1764014341034,0.002,2962.8,2962.1,15.09242711]
[1764014341190,0.002,2962.8,2962.7,0.3847]
[1764014341391,0.002,2962.9,2962.8,3.37518563]
[1764014341691,0.002,2962.9,2962.8,4.87017974]
[1764014342627,0.002,2963.1,2962.9,0.72559411]
[1764014342792,0.002,2963.1,2963.0,8.05688411]
[1764014342987,0.002,2963.1,2963.0,8.44158411]
[1764014343208,0.002,2963.4,2963.1,0.72559411]
[1764014343402,0.002,2963.4,2963.1,1.59339411]
[1764014344142,0.002,2963.4,2963.1,4.96823802]
[1764014344740,0.218,2963.9,2963.1,4.96823802]
[1764014344741,0.002,2963.9,2963.6,0.405504]
[1764014344927,0.002,2964.2,2964.0,0.3847]
[1764014345240,0.002,2964.2,2964.1,8.44158411]
[1764014346110,0.002,2964.2,2964.1,11.81528945]
[1764014346331,0.002,2964.2,2964.1,4.86869945]
[1764014346725,0.002,2964.2,2964.1,4.48399945]
[1764014347442,0.002,2964.2,2964.1,4.86869945]
[1764014349610,0.002,2964.2,2964.1,4.48399945]
[1764014349815,0.002,2964.2,2964.1,4.86869945]
[1764014350515,0.002,2964.2,2964.1,4.09929945]
[1764014352060,0.002,2964.2,2964.1,4.14310534]
[1764014353428,0.002,2964.2,2964.1,3.37370534]
[1764014353960,0.002,2964.2,2964.1,3.75840534]
[1764014355329,0.002,2964.2,2964.1,3.37370534]
[1764014355662,0.002,2964.2,2964.1,3.75840534]
[1764014356341,0.002,2964.2,2964.1,4.48399945]